[Event "*** SCC Grand Prix: Titled Tuesday Blitz"]
[Site "Chess.com"]
[Date "2020.08.04"]
[Round "8"]
[White "ace_mar"]
[Black "Artem_Sadovsky"]
[Result "0-1"]
[WhiteElo "2456"]
[BlackElo "2405"]
[TimeControl "180+1"]
[EndTime "15:19:05 PDT"]
[Termination "Artem_Sadovsky won by resignation"]

1. d4 {[%clk 0:03:00.9]} 1... g6 {[%clk 0:02:53.3]} 2. e4 {[%clk 0:03:00.6]}
2... Bg7 {[%clk 0:02:54.2]} 3. Nc3 {[%clk 0:03:01.1]} 3... d6 {[%clk 0:02:54.5]}
4. f4 {[%clk 0:03:01.7]} 4... a6 {[%clk 0:02:53.3]} 5. Nf3 {[%clk 0:03:01.2]}
5... b5 {[%clk 0:02:53.8]} 6. Bd3 {[%clk 0:03:01.7]} 6... Bb7 {[%clk 0:02:54.3]}
7. e5 {[%clk 0:03:01.3]} 7... Nh6 {[%clk 0:02:35.9]} 8. Be4 {[%clk 0:02:59.5]}
8... Bxe4 {[%clk 0:02:30.9]} 9. Nxe4 {[%clk 0:03:00.4]} 9... O-O {[%clk
0:02:31.4]} 10. O-O {[%clk 0:02:58.5]} 10... Qc8 {[%clk 0:02:19.6]} 11. c3
{[%clk 0:02:53.3]} 11... Qb7 {[%clk 0:01:57.1]} 12. Qe2 {[%clk 0:02:51.3]} 12...
Nc6 {[%clk 0:01:51]} 13. Rd1 {[%clk 0:02:29.7]} 13... Rad8 {[%clk 0:01:47.1]}
14. a4 {[%clk 0:02:24.2]} 14... e6 {[%clk 0:01:25.8]} 15. axb5 {[%clk
0:02:18.8]} 15... axb5 {[%clk 0:01:26.7]} 16. Be3 {[%clk 0:02:19.3]} 16... Nxe5
{[%clk 0:01:17.5]} 17. fxe5 {[%clk 0:01:40.5]} 17... Qxe4 {[%clk 0:01:15.8]} 18.
Qd2 {[%clk 0:01:33.8]} 18... Nf5 {[%clk 0:01:08.4]} 19. Bg5 {[%clk 0:01:33.6]}
19... Ra8 {[%clk 0:00:56.4]} 20. Bf6 {[%clk 0:01:24.6]} 20... Bh6 {[%clk
0:00:46.4]} 21. Bg5 {[%clk 0:01:13.9]} 21... Bxg5 {[%clk 0:00:44.2]} 22. Qxg5
{[%clk 0:01:13.9]} 22... Qe3+ {[%clk 0:00:44]} 23. Qxe3 {[%clk 0:01:09.8]} 23...
Nxe3 {[%clk 0:00:44.9]} 24. Re1 {[%clk 0:01:04.8]} 24... Nc2 {[%clk 0:00:27.5]}
25. Rxa8 {[%clk 0:01:03.6]} 25... Rxa8 {[%clk 0:00:28.4]} 26. Rc1 {[%clk
0:01:03.7]} 26... Ra1 {[%clk 0:00:23.8]} 27. Rxa1 {[%clk 0:01:03.3]} 27... Nxa1
{[%clk 0:00:24.7]} 28. Kf2 {[%clk 0:01:01.2]} 28... Nb3 {[%clk 0:00:21.7]} 29.
Ke2 {[%clk 0:00:57.5]} 29... Kg7 {[%clk 0:00:19]} 30. Kd3 {[%clk 0:00:56.2]}
30... Na5 {[%clk 0:00:19.4]} 31. Nd2 {[%clk 0:00:49.4]} 31... dxe5 {[%clk
0:00:13.2]} 32. dxe5 {[%clk 0:00:48.9]} 32... Nc6 {[%clk 0:00:12.7]} 33. Ke4
{[%clk 0:00:48.1]} 33... f5+ {[%clk 0:00:12.6]} 34. exf6+ {[%clk 0:00:47.8]}
34... Kxf6 {[%clk 0:00:13.1]} 35. Nf3 {[%clk 0:00:46.3]} 35... h6 {[%clk
0:00:10.9]} 36. g3 {[%clk 0:00:43.7]} 36... b4 {[%clk 0:00:11.1]} 37. Nd2 {[%clk
0:00:35.8]} 37... bxc3 {[%clk 0:00:10.5]} 38. bxc3 {[%clk 0:00:36.7]} 38... Ne5
{[%clk 0:00:09.8]} 39. h3 {[%clk 0:00:33.4]} 39... Nf7 {[%clk 0:00:06.4]} 40.
Nb3 {[%clk 0:00:32.9]} 40... Ng5+ {[%clk 0:00:06.4]} 41. Ke3 {[%clk 0:00:31.8]}
41... Nxh3 {[%clk 0:00:07.3]} 42. Nd4 {[%clk 0:00:27.1]} 42... Ke7 {[%clk
0:00:07.7]} 43. Nb5 {[%clk 0:00:24.2]} 43... Kd7 {[%clk 0:00:07.8]} 44. Nd4
{[%clk 0:00:24.3]} 44... Ng5 {[%clk 0:00:08.1]} 45. Ne2 {[%clk 0:00:22.6]} 45...
Nf7 {[%clk 0:00:06.6]} 46. Nf4 {[%clk 0:00:19.9]} 46... g5 {[%clk 0:00:07]} 47.
Nd3 {[%clk 0:00:18.9]} 47... Kd6 {[%clk 0:00:07.5]} 48. Nf2 {[%clk 0:00:18.2]}
48... Kd5 {[%clk 0:00:07]} 49. Ng4 {[%clk 0:00:17]} 49... Kc4 {[%clk 0:00:06.6]}
50. Kd2 {[%clk 0:00:15.6]} 50... h5 {[%clk 0:00:06.6]} 51. Nf6 {[%clk
0:00:14.2]} 51... h4 {[%clk 0:00:06.7]} 52. gxh4 {[%clk 0:00:14.7]} 52... gxh4
{[%clk 0:00:07]} 53. Ng4 {[%clk 0:00:15]} 53... h3 {[%clk 0:00:07]} 54. Ne3+
{[%clk 0:00:15.3]} 54... Kc5 {[%clk 0:00:07]} 55. Ng4 {[%clk 0:00:15.5]} 55...
Nd6 {[%clk 0:00:06]} 56. Kd3 {[%clk 0:00:14.6]} 56... Nf5 {[%clk 0:00:05.6]} 57.
Nh2 {[%clk 0:00:14.9]} 57... Nh4 {[%clk 0:00:05.4]} 58. Ke4 {[%clk 0:00:13.7]}
58... Kc4 {[%clk 0:00:05.3]} 59. Kf4 {[%clk 0:00:11.7]} 59... Kxc3 {[%clk
0:00:05.5]} 60. Kg4 {[%clk 0:00:12.1]} 60... Nf5 {[%clk 0:00:05.5]} 61. Kxh3
{[%clk 0:00:11.9]} 61... c5 {[%clk 0:00:05.8]} 62. Kg4 {[%clk 0:00:12.3]} 62...
c4 {[%clk 0:00:06]} 63. Kf4 {[%clk 0:00:12]} 63... Kd3 {[%clk 0:00:06.2]} 64.
Nf3 {[%clk 0:00:12.2]} 64... c3 {[%clk 0:00:06.5]} 65. Ke5 {[%clk 0:00:11.2]}
65... Nh4 {[%clk 0:00:04.4]} 66. Ne1+ {[%clk 0:00:07.6]} 66... Kd2 {[%clk
0:00:04.4]} 67. Kd4 {[%clk 0:00:06.4]} 67... Kxe1 {[%clk 0:00:03.7]} 68. Kxc3
{[%clk 0:00:06.6]} 68... Ng6 {[%clk 0:00:03.8]} 69. Kd4 {[%clk 0:00:07.5]} 69...
Nf8 {[%clk 0:00:04.5]} 70. Ke5 {[%clk 0:00:07.4]} 70... Ke2 {[%clk 0:00:05.4]}
71. Kf6 {[%clk 0:00:07.6]} 71... Ke3 {[%clk 0:00:06.3]} 72. Kf7 {[%clk
0:00:08.5]} 72... Kf4 {[%clk 0:00:07.2]} 73. Kxf8 {[%clk 0:00:09.4]} 73... e5
{[%clk 0:00:08.1]} 74. Ke7 {[%clk 0:00:10.3]} 74... e4 {[%clk 0:00:09]} 0-1

[Event "*** SCC Grand Prix: Titled Tuesday Blitz"]
[Site "Chess.com"]
[Date "2020.08.04"]
[Round "8"]
[White "Caterpiller35"]
[Black "GoltsevDmitry2000"]
[Result "1/2-1/2"]
[WhiteElo "2380"]
[BlackElo "2601"]
[TimeControl "180+1"]
[EndTime "15:19:15 PDT"]
[Termination "Game drawn - insufficient material"]

1. d4 {[%clk 0:03:00.9]} 1... d5 {[%clk 0:02:59.1]} 2. Bf4 {[%clk 0:03:00.9]}
2... c6 {[%clk 0:03:00]} 3. e3 {[%clk 0:03:01.1]} 3... Nd7 {[%clk 0:03:00.7]} 4.
c4 {[%clk 0:02:59.2]} 4... Ngf6 {[%clk 0:03:01.6]} 5. Nc3 {[%clk 0:02:59.4]}
5... e6 {[%clk 0:03:01.5]} 6. Nf3 {[%clk 0:02:59.1]} 6... Be7 {[%clk 0:03:00.9]}
7. Qc2 {[%clk 0:02:59.3]} 7... Nh5 {[%clk 0:03:00.3]} 8. Bg3 {[%clk 0:02:56.2]}
8... Nxg3 {[%clk 0:02:59.6]} 9. hxg3 {[%clk 0:02:57.1]} 9... h6 {[%clk
0:02:59.6]} 10. O-O-O {[%clk 0:02:56]} 10... a6 {[%clk 0:02:55.5]} 11. e4 {[%clk
0:02:52.9]} 11... dxe4 {[%clk 0:02:49.6]} 12. Nxe4 {[%clk 0:02:52]} 12... Nf6
{[%clk 0:02:49.3]} 13. Bd3 {[%clk 0:02:50.3]} 13... Bd7 {[%clk 0:02:47.6]} 14.
Ne5 {[%clk 0:02:48.1]} 14... Qc7 {[%clk 0:02:44.1]} 15. g4 {[%clk 0:02:42]}
15... Nxe4 {[%clk 0:02:42.2]} 16. Bxe4 {[%clk 0:02:41.6]} 16... Bf6 {[%clk
0:02:42.6]} 17. f4 {[%clk 0:02:37.3]} 17... Rc8 {[%clk 0:02:32.4]} 18. g5 {[%clk
0:02:32.8]} 18... Be7 {[%clk 0:02:28.5]} 19. Bg6 {[%clk 0:02:26]} 19... Rf8
{[%clk 0:02:19.6]} 20. Bxf7+ {[%clk 0:02:24.6]} 20... Kd8 {[%clk 0:02:13.7]} 21.
gxh6 {[%clk 0:02:19.8]} 21... gxh6 {[%clk 0:02:13]} 22. Rxh6 {[%clk 0:02:19.7]}
22... Qd6 {[%clk 0:02:04.6]} 23. d5 {[%clk 0:01:40.6]} 23... cxd5 {[%clk
0:02:01.4]} 24. Rxd5 {[%clk 0:01:40.5]} 24... Qxd5 {[%clk 0:01:55.9]} 25. cxd5
{[%clk 0:01:38.4]} 25... Rxc2+ {[%clk 0:01:56.8]} 26. Kxc2 {[%clk 0:01:38.7]}
26... exd5 {[%clk 0:01:57.7]} 27. g3 {[%clk 0:01:24.5]} 27... Bf5+ {[%clk
0:01:51.8]} 28. Kc3 {[%clk 0:01:24.5]} 28... Be4 {[%clk 0:01:47.8]} 29. Kd4
{[%clk 0:01:18.2]} 29... Kc7 {[%clk 0:01:43.4]} 30. Bxd5 {[%clk 0:01:17.2]}
30... Bf5 {[%clk 0:01:41]} 31. g4 {[%clk 0:01:12.7]} 31... Bxg4 {[%clk 0:01:41]}
32. Rh7 {[%clk 0:01:11]} 32... Kd6 {[%clk 0:01:29]} 33. Rxe7 {[%clk 0:00:51]}
33... Rxf4+ {[%clk 0:01:19.7]} 34. Ke3 {[%clk 0:00:50.5]} 34... Ra4 {[%clk
0:01:14.9]} 35. Bb3 {[%clk 0:00:29]} 35... Rb4 {[%clk 0:01:03]} 36. Re8 {[%clk
0:00:20.4]} 36... Bf5 {[%clk 0:00:58.7]} 37. Nd3 {[%clk 0:00:18.8]} 37... Rh4
{[%clk 0:00:56.9]} 38. Nf4 {[%clk 0:00:16.4]} 38... Rh2 {[%clk 0:00:55.8]} 39.
Rf8 {[%clk 0:00:15.7]} 39... Bd7 {[%clk 0:00:53]} 40. Rf6+ {[%clk 0:00:15.5]}
40... Ke5 {[%clk 0:00:50]} 41. Rf7 {[%clk 0:00:13.5]} 41... Bc6 {[%clk
0:00:50.1]} 42. Nd3+ {[%clk 0:00:12.7]} 42... Kd6 {[%clk 0:00:48.7]} 43. Rf2
{[%clk 0:00:12.5]} 43... Rh3+ {[%clk 0:00:48.4]} 44. Kd2 {[%clk 0:00:12.9]}
44... Bb5 {[%clk 0:00:48.6]} 45. Rf6+ {[%clk 0:00:11.2]} 45... Ke7 {[%clk
0:00:46.7]} 46. Re6+ {[%clk 0:00:09.7]} 46... Kd7 {[%clk 0:00:46.7]} 47. Ne5+
{[%clk 0:00:09.6]} 47... Kc7 {[%clk 0:00:46.4]} 48. Ng6 {[%clk 0:00:05.6]} 48...
Rh2+ {[%clk 0:00:45.6]} 49. Ke3 {[%clk 0:00:04.5]} 49... Rxb2 {[%clk 0:00:42.4]}
50. Nf4 {[%clk 0:00:04.6]} 50... a5 {[%clk 0:00:41.4]} 51. Re7+ {[%clk
0:00:04.5]} 51... Kc8 {[%clk 0:00:33.6]} 52. Be6+ {[%clk 0:00:03]} 52... Kb8
{[%clk 0:00:33.2]} 53. Bd5 {[%clk 0:00:01.6]} 53... Ba6 {[%clk 0:00:28.1]} 54.
Kd4 {[%clk 0:00:01.8]} 54... Ka7 {[%clk 0:00:24.6]} 55. Ne6 {[%clk 0:00:01.5]}
55... a4 {[%clk 0:00:20.3]} 56. Nc5 {[%clk 0:00:01.6]} 56... a3 {[%clk
0:00:17.2]} 57. Nxa6 {[%clk 0:00:01.8]} 57... Kxa6 {[%clk 0:00:18.1]} 58. Re8
{[%clk 0:00:01.8]} 58... b6 {[%clk 0:00:17.1]} 59. Ra8+ {[%clk 0:00:01.2]} 59...
Kb5 {[%clk 0:00:17.5]} 60. Rxa3 {[%clk 0:00:02.1]} 60... Rd2+ {[%clk 0:00:16.7]}
61. Rd3 {[%clk 0:00:02.2]} 61... Rh2 {[%clk 0:00:14.7]} 62. Rb3+ {[%clk
0:00:02.2]} 62... Ka5 {[%clk 0:00:15.1]} 63. Re3 {[%clk 0:00:01.9]} 63... b5
{[%clk 0:00:15.4]} 64. Bc6 {[%clk 0:00:01.9]} 64... b4 {[%clk 0:00:13.4]} 65.
Kc5 {[%clk 0:00:02.8]} 65... Rc2+ {[%clk 0:00:12.9]} 66. Kd6 {[%clk 0:00:02.5]}
66... Rxa2 {[%clk 0:00:13.4]} 67. Bd5 {[%clk 0:00:02]} 67... Rd2 {[%clk
0:00:13.2]} 68. Re8 {[%clk 0:00:02.9]} 68... Kb5 {[%clk 0:00:11.1]} 69. Ra8
{[%clk 0:00:03.8]} 69... b3 {[%clk 0:00:08.9]} 70. Rb8+ {[%clk 0:00:04.7]} 70...
Ka4 {[%clk 0:00:09.3]} 71. Rxb3 {[%clk 0:00:05.1]} 71... Rxd5+ {[%clk
0:00:08.8]} 72. Kxd5 {[%clk 0:00:06]} 72... Kxb3 {[%clk 0:00:09.7]} 1/2-1/2

[Event "*** SCC Grand Prix: Titled Tuesday Blitz"]
[Site "Chess.com"]
[Date "2020.08.04"]
[Round "8"]
[White "Shield12"]
[Black "Bulldog167"]
[Result "1-0"]
[WhiteElo "2844"]
[BlackElo "2727"]
[TimeControl "180+1"]
[EndTime "15:19:18 PDT"]
[Termination "Shield12 won on time"]

1. e4 {[%clk 0:03:00.9]} 1... e6 {[%clk 0:02:59.6]} 2. d4 {[%clk 0:03:01]} 2...
d5 {[%clk 0:03:00.3]} 3. Nd2 {[%clk 0:03:01.6]} 3... c5 {[%clk 0:03:00]} 4. Ngf3
{[%clk 0:03:01.5]} 4... cxd4 {[%clk 0:03:00.3]} 5. exd5 {[%clk 0:03:02.2]} 5...
Qxd5 {[%clk 0:03:01.2]} 6. Bc4 {[%clk 0:03:02.8]} 6... Qd7 {[%clk 0:03:01]} 7.
O-O {[%clk 0:03:03.3]} 7... Nc6 {[%clk 0:03:01.5]} 8. Nb3 {[%clk 0:03:03.9]}
8... a6 {[%clk 0:03:02]} 9. Nbxd4 {[%clk 0:03:04.5]} 9... Nxd4 {[%clk
0:03:02.9]} 10. Nxd4 {[%clk 0:03:05.3]} 10... Qc7 {[%clk 0:03:03.1]} 11. Bb3
{[%clk 0:03:05.3]} 11... Bd6 {[%clk 0:03:03.8]} 12. Re1 {[%clk 0:03:05.7]} 12...
Ne7 {[%clk 0:03:03.2]} 13. Qh5 {[%clk 0:03:01.4]} 13... O-O {[%clk 0:02:52.5]}
14. c3 {[%clk 0:03:01.1]} 14... Ng6 {[%clk 0:02:48.3]} 15. Be3 {[%clk
0:02:56.4]} 15... Bd7 {[%clk 0:02:44.5]} 16. Rad1 {[%clk 0:02:55.2]} 16... Rad8
{[%clk 0:02:44.3]} 17. Bg5 {[%clk 0:02:53.4]} 17... Be7 {[%clk 0:02:36.9]} 18.
Bxe7 {[%clk 0:02:32.3]} 18... Nxe7 {[%clk 0:02:37.8]} 19. Rd3 {[%clk 0:02:18.8]}
19... Ng6 {[%clk 0:02:17]} 20. Rh3 {[%clk 0:01:58.3]} 20... h6 {[%clk 0:02:17]}
21. Rg3 {[%clk 0:01:57.6]} 21... Kh8 {[%clk 0:01:39.6]} 22. Bc2 {[%clk
0:01:42.8]} 22... Nf4 {[%clk 0:01:33.6]} 23. Qg4 {[%clk 0:01:36.5]} 23... Rg8
{[%clk 0:01:33.7]} 24. Qh4 {[%clk 0:01:25.7]} 24... e5 {[%clk 0:01:24.2]} 25.
Nf3 {[%clk 0:01:25.2]} 25... Rde8 {[%clk 0:00:59.5]} 26. Ng5 {[%clk 0:01:12.7]}
26... Be6 {[%clk 0:00:48.8]} 27. Ne4 {[%clk 0:01:07]} 27... Qd8 {[%clk
0:00:45.2]} 28. Qxd8 {[%clk 0:00:52.8]} 28... Rxd8 {[%clk 0:00:46.1]} 29. Rge3
{[%clk 0:00:53.4]} 29... f6 {[%clk 0:00:41.7]} 30. g3 {[%clk 0:00:51.4]} 30...
Nh3+ {[%clk 0:00:36.5]} 31. Kg2 {[%clk 0:00:45.3]} 31... Ng5 {[%clk 0:00:37]}
32. h4 {[%clk 0:00:38.1]} 32... Nxe4 {[%clk 0:00:33.6]} 33. Bxe4 {[%clk
0:00:39]} 33... Bxa2 {[%clk 0:00:31.4]} 34. Bxb7 {[%clk 0:00:38.5]} 34... Rb8
{[%clk 0:00:30.3]} 35. Bxa6 {[%clk 0:00:35.9]} 35... Rxb2 {[%clk 0:00:30.8]} 36.
R3e2 {[%clk 0:00:31.6]} 36... Bd5+ {[%clk 0:00:30.8]} 37. Kh2 {[%clk 0:00:26.4]}
37... Rb6 {[%clk 0:00:30.7]} 38. Bd3 {[%clk 0:00:25.5]} 38... Rc8 {[%clk
0:00:30.6]} 39. Rc1 {[%clk 0:00:23.5]} 39... Rbc6 {[%clk 0:00:29.2]} 40. Rec2
{[%clk 0:00:21.1]} 40... Bb3 {[%clk 0:00:28.8]} 41. Rd2 {[%clk 0:00:20.3]} 41...
Rxc3 {[%clk 0:00:23.7]} 42. Rxc3 {[%clk 0:00:21.2]} 42... Rxc3 {[%clk
0:00:24.2]} 43. Bf5 {[%clk 0:00:22.1]} 43... Kg8 {[%clk 0:00:06.4]} 44. Rd8+
{[%clk 0:00:20.7]} 44... Kf7 {[%clk 0:00:06.6]} 45. Rd7+ {[%clk 0:00:21.1]}
45... Kf8 {[%clk 0:00:06.2]} 46. Rd8+ {[%clk 0:00:21.5]} 46... Ke7 {[%clk
0:00:06.5]} 47. Rd7+ {[%clk 0:00:21.8]} 47... Ke8 {[%clk 0:00:07.1]} 48. Rxg7
{[%clk 0:00:21.4]} 48... Rf3 {[%clk 0:00:07.7]} 49. Bg6+ {[%clk 0:00:13.6]}
49... Kf8 {[%clk 0:00:07.5]} 50. Rh7 {[%clk 0:00:11.1]} 50... Rxf2+ {[%clk
0:00:08.1]} 51. Kg1 {[%clk 0:00:11.5]} 51... Rd2 {[%clk 0:00:06.7]} 52. Bf5
{[%clk 0:00:10.7]} 52... Bd5 {[%clk 0:00:05.2]} 53. g4 {[%clk 0:00:11]} 53... e4
{[%clk 0:00:04.4]} 54. Rxh6 {[%clk 0:00:09.4]} 54... e3 {[%clk 0:00:05.1]} 55.
Kf1 {[%clk 0:00:05.8]} 55... Bc4+ {[%clk 0:00:04.4]} 56. Ke1 {[%clk 0:00:05.7]}
56... Rh2 {[%clk 0:00:02.6]} 57. Be4 {[%clk 0:00:04.4]} 57... Ra2 {[%clk
0:00:02]} 58. Rxf6+ {[%clk 0:00:02.9]} 58... Ke7 {[%clk 0:00:02.6]} 59. Rb6
{[%clk 0:00:03.8]} 59... Rh2 {[%clk 0:00:01.7]} 60. Rc6 {[%clk 0:00:02.6]} 60...
Re2+ {[%clk 0:00:02.1]} 61. Kd1 {[%clk 0:00:02.5]} 61... Rd2+ {[%clk 0:00:02.8]}
62. Kc1 {[%clk 0:00:02.9]} 62... Be6 {[%clk 0:00:02.3]} 63. Rc3 {[%clk 0:00:02]}
63... Re2 {[%clk 0:00:02.4]} 64. Bf3 {[%clk 0:00:01.8]} 64... Re1+ {[%clk
0:00:02.4]} 65. Kc2 {[%clk 0:00:02.7]} 65... Rf1 {[%clk 0:00:02.6]} 66. Rxe3
{[%clk 0:00:02.5]} 66... Rf2+ {[%clk 0:00:03.3]} 67. Kd3 {[%clk 0:00:02.5]}
67... Kf6 {[%clk 0:00:04.2]} 68. Ke4 {[%clk 0:00:03.4]} 68... Ra2 {[%clk
0:00:03.9]} 69. Kf4 {[%clk 0:00:03.8]} 69... Ra4+ {[%clk 0:00:03.8]} 70. Kg3
{[%clk 0:00:04.2]} 70... Ra1 {[%clk 0:00:04.7]} 71. g5+ {[%clk 0:00:05.1]} 71...
Kf5 {[%clk 0:00:05]} 72. Bg4+ {[%clk 0:00:05.3]} 72... Kg6 {[%clk 0:00:05.4]}
73. Rxe6+ {[%clk 0:00:06.2]} 73... Kf7 {[%clk 0:00:06.1]} 74. Rf6+ {[%clk
0:00:06.8]} 1-0

[Event "*** SCC Grand Prix: Titled Tuesday Blitz"]
[Site "Chess.com"]
[Date "2020.08.04"]
[Round "9"]
[White "shnitez"]
[Black "Bastiandash"]
[Result "1-0"]
[WhiteElo "2478"]
[BlackElo "2323"]
[TimeControl "180+1"]
[EndTime "15:20:55 PDT"]
[Termination "shnitez won by resignation"]

1. c4 {[%clk 0:03:00.9]} 1... Nf6 {[%clk 0:02:59.2]} 2. Nc3 {[%clk 0:03:00.9]}
2... e6 {[%clk 0:02:59.7]} 3. e4 {[%clk 0:03:01.1]} 3... d5 {[%clk 0:02:55.5]}
4. e5 {[%clk 0:03:01.3]} 4... d4 {[%clk 0:02:55.9]} 5. exf6 {[%clk 0:03:01.7]}
5... dxc3 {[%clk 0:02:56.8]} 6. bxc3 {[%clk 0:03:02.3]} 6... Qxf6 {[%clk
0:02:57.4]} 7. d4 {[%clk 0:03:02.6]} 7... Bd6 {[%clk 0:02:56]} 8. Nf3 {[%clk
0:03:02.6]} 8... h6 {[%clk 0:02:55.8]} 9. Bd3 {[%clk 0:03:02.4]} 9... O-O {[%clk
0:02:50.9]} 10. O-O {[%clk 0:03:02.1]} 10... Nd7 {[%clk 0:02:49.3]} 11. Re1
{[%clk 0:03:01.8]} 11... b6 {[%clk 0:02:48.9]} 12. Be4 {[%clk 0:03:01]} 12...
Rb8 {[%clk 0:02:48.8]} 13. Qa4 {[%clk 0:03:00.9]} 13... Bb7 {[%clk 0:02:41]} 14.
Bxb7 {[%clk 0:02:59.6]} 14... Rxb7 {[%clk 0:02:41.9]} 15. Qxd7 {[%clk
0:02:59.1]} 1-0

[Event "*** SCC Grand Prix: Titled Tuesday Blitz"]
[Site "Chess.com"]
[Date "2020.08.04"]
[Round "9"]
[White "GM_LOADING"]
[Black "KuzubovYuriy"]
[Result "0-1"]
[WhiteElo "2625"]
[BlackElo "2833"]
[TimeControl "180+1"]
[EndTime "15:22:59 PDT"]
[Termination "KuzubovYuriy won by resignation"]

1. d4 {[%clk 0:03:00.9]} 1... Nf6 {[%clk 0:02:59.8]} 2. Nf3 {[%clk 0:03:00.8]}
2... e6 {[%clk 0:03:00.1]} 3. Bg5 {[%clk 0:03:00.1]} 3... h6 {[%clk 0:02:59.8]}
4. Bxf6 {[%clk 0:02:56.7]} 4... Qxf6 {[%clk 0:02:59.3]} 5. Nbd2 {[%clk
0:02:57.5]} 5... c6 {[%clk 0:02:57.2]} 6. e3 {[%clk 0:02:56.8]} 6... d6 {[%clk
0:02:56]} 7. Be2 {[%clk 0:02:53]} 7... Nd7 {[%clk 0:02:55.8]} 8. O-O {[%clk
0:02:52.9]} 8... g6 {[%clk 0:02:54]} 9. a4 {[%clk 0:02:52]} 9... a5 {[%clk
0:02:52.2]} 10. Nc4 {[%clk 0:02:49.4]} 10... Qe7 {[%clk 0:02:49.4]} 11. Qd2
{[%clk 0:02:47.1]} 11... Bg7 {[%clk 0:02:46.7]} 12. Nxa5 {[%clk 0:02:43.9]}
12... e5 {[%clk 0:02:38.7]} 13. dxe5 {[%clk 0:02:41.6]} 13... dxe5 {[%clk
0:02:37.9]} 14. Nc4 {[%clk 0:02:39.9]} 14... e4 {[%clk 0:02:33.5]} 15. Nd4
{[%clk 0:02:36.5]} 15... h5 {[%clk 0:02:25]} 16. a5 {[%clk 0:02:33.4]} 16... h4
{[%clk 0:02:15.7]} 17. Rfd1 {[%clk 0:02:28.7]} 17... h3 {[%clk 0:02:10.3]} 18.
g3 {[%clk 0:02:28.6]} 18... O-O {[%clk 0:02:09.5]} 19. Bf1 {[%clk 0:02:25.3]}
19... Ne5 {[%clk 0:01:53]} 20. Nb6 {[%clk 0:02:23.4]} 20... c5 {[%clk
0:01:50.5]} 21. Nb5 {[%clk 0:02:15.9]} 21... Nf3+ {[%clk 0:01:48.9]} 0-1

[Event "*** SCC Grand Prix: Titled Tuesday Blitz"]
[Site "Chess.com"]
[Date "2020.08.04"]
[Round "9"]
[White "harkerchess"]
[Black "Sn00pPawn"]
[Result "0-1"]
[WhiteElo "2130"]
[BlackElo "2000"]
[TimeControl "180+1"]
[EndTime "15:23:40 PDT"]
[Termination "Sn00pPawn won by resignation"]

1. Nc3 {[%clk 0:03:00.9]} 1... d5 {[%clk 0:02:56.4]} 2. d4 {[%clk 0:03:00.9]}
2... Nf6 {[%clk 0:02:55.9]} 3. Bf4 {[%clk 0:03:00.5]} 3... c5 {[%clk 0:02:55.5]}
4. e3 {[%clk 0:02:59.8]} 4... cxd4 {[%clk 0:02:39.6]} 5. exd4 {[%clk 0:02:59.6]}
5... a6 {[%clk 0:02:39]} 6. Nf3 {[%clk 0:02:58.2]} 6... Bg4 {[%clk 0:02:35.5]}
7. Be2 {[%clk 0:02:58]} 7... Bxf3 {[%clk 0:02:34.6]} 8. Bxf3 {[%clk 0:02:58.9]}
8... Nc6 {[%clk 0:02:34.5]} 9. O-O {[%clk 0:02:58.9]} 9... e6 {[%clk 0:02:33.7]}
10. Re1 {[%clk 0:02:57.8]} 10... Be7 {[%clk 0:02:32.1]} 11. a3 {[%clk
0:02:50.4]} 11... Qb6 {[%clk 0:02:19.7]} 12. Na4 {[%clk 0:02:39.3]} 12... Qxd4
{[%clk 0:02:18.2]} 13. Qxd4 {[%clk 0:02:32.8]} 13... Nxd4 {[%clk 0:02:17.9]} 14.
Bd1 {[%clk 0:02:28.8]} 14... Nd7 {[%clk 0:02:01.8]} 15. c3 {[%clk 0:02:24.5]}
15... Nf5 {[%clk 0:01:58.7]} 16. Bc2 {[%clk 0:02:18.9]} 16... Nd6 {[%clk
0:01:55.5]} 17. b3 {[%clk 0:02:15.2]} 17... O-O {[%clk 0:01:49.5]} 18. Nb2
{[%clk 0:02:10.7]} 18... Rac8 {[%clk 0:01:45.6]} 19. Bd2 {[%clk 0:02:10.1]}
19... Bf6 {[%clk 0:01:44.6]} 20. Nd1 {[%clk 0:02:04.6]} 20... Nb5 {[%clk
0:01:38.9]} 21. Rc1 {[%clk 0:01:57.9]} 21... Nxa3 {[%clk 0:01:31.7]} 22. Bd3
{[%clk 0:01:56.3]} 22... Nc5 {[%clk 0:01:28.6]} 23. Bf1 {[%clk 0:01:51.4]} 23...
Nxb3 {[%clk 0:01:27.2]} 0-1

[Event "*** SCC Grand Prix: Titled Tuesday Blitz"]
[Site "Chess.com"]
[Date "2020.08.04"]
[Round "9"]
[White "Eternauta2400"]
[Black "Evgeny81"]
[Result "1-0"]
[WhiteElo "2553"]
[BlackElo "2745"]
[TimeControl "180+1"]
[EndTime "15:23:55 PDT"]
[Termination "Eternauta2400 won by resignation"]

1. c4 {[%clk 0:03:00.9]} 1... e5 {[%clk 0:02:59.3]} 2. Nc3 {[%clk 0:03:00.3]}
2... Nf6 {[%clk 0:02:59.6]} 3. Nf3 {[%clk 0:03:00.4]} 3... Nc6 {[%clk
0:02:59.3]} 4. e4 {[%clk 0:03:00.4]} 4... Bc5 {[%clk 0:02:59.4]} 5. Nxe5 {[%clk
0:03:00]} 5... Nxe5 {[%clk 0:02:57.9]} 6. d4 {[%clk 0:02:59.1]} 6... Bxd4 {[%clk
0:02:54.2]} 7. Qxd4 {[%clk 0:02:57.5]} 7... d6 {[%clk 0:02:54.9]} 8. b3 {[%clk
0:02:51.8]} 8... O-O {[%clk 0:02:50.5]} 9. Be2 {[%clk 0:02:49.5]} 9... Nfd7
{[%clk 0:02:43.3]} 10. O-O {[%clk 0:02:46]} 10... Nc5 {[%clk 0:02:42.6]} 11. Bb2
{[%clk 0:02:41.8]} 11... f6 {[%clk 0:02:36.6]} 12. f4 {[%clk 0:02:35.7]} 12...
Nc6 {[%clk 0:02:33.8]} 13. Qd2 {[%clk 0:02:29.1]} 13... Be6 {[%clk 0:02:28.3]}
14. Bf3 {[%clk 0:02:24.6]} 14... a5 {[%clk 0:02:27]} 15. Nd5 {[%clk 0:02:22.1]}
15... Qd7 {[%clk 0:02:20.2]} 16. h3 {[%clk 0:02:18.3]} 16... Rae8 {[%clk
0:02:20]} 17. Rae1 {[%clk 0:02:16.9]} 17... Qc8 {[%clk 0:02:14.4]} 18. Kh2
{[%clk 0:02:15.2]} 18... Kh8 {[%clk 0:02:07.4]} 19. g4 {[%clk 0:02:14]} 19...
Bg8 {[%clk 0:02:00.7]} 20. Rg1 {[%clk 0:02:12.8]} 20... Bxd5 {[%clk 0:01:56.1]}
21. cxd5 {[%clk 0:02:10.7]} 21... Nb4 {[%clk 0:01:53.9]} 22. g5 {[%clk
0:02:10.4]} 22... Nbd3 {[%clk 0:01:50.1]} 23. gxf6 {[%clk 0:02:07.9]} 23... gxf6
{[%clk 0:01:51]} 24. Re2 {[%clk 0:01:57.1]} 24... Nxb2 {[%clk 0:01:49.4]} 25.
Qxb2 {[%clk 0:01:57.5]} 25... Qd7 {[%clk 0:01:38.8]} 26. Qd4 {[%clk 0:01:53.2]}
26... Qb5 {[%clk 0:01:32.6]} 27. Reg2 {[%clk 0:01:50.7]} 27... Qb4 {[%clk
0:01:28.4]} 28. Rg8+ {[%clk 0:01:48.8]} 1-0